Cogmind - Beta 15 @@@ ROGUE MODE // 2025.10.11 @ 06:32:30 Player: Jordan Result: Destroyed by G-34 Mercenary with Small Laser Performance ------------- Evolutions (1) 500 Regions Visited (2) 400 Robots Destroyed (46) 230 Value Destroyed (808) 808 Prototype IDs (2) 40 Alien Tech Used (0) 0 Bonus (0) 0 TOTAL SCORE: 1978 Bonus ------- None Cogmind --------- Core Integrity 0/400 Matter 222/300 Energy 48/100 System Corruption 4% Temperature Cool (6) Movement Walking (120) Location -9/Materials Parts ------- > --- POWER (1) -------- (None) > --- PROPULSION (2) --- Carbon-fiber Leg Carbon-fiber Leg > --- UTILITY (4) ------ Signal Interpreter Targeting Computer Insulated Plating Insulated Plating > --- WEAPON (2) ------- EM Pulse Cannon EM Pulse Cannon > --- INVENTORY (5) ---- Carbon-fiber Leg ECM Suite Peak State ------------ > --- POWER ------------ (None) > --- PROPULSION ------- Carbon-fiber Leg Carbon-fiber Leg > --- UTILITY ---------- Signal Interpreter Targeting Computer Insulated Plating Insulated Plating > --- WEAPON ----------- EM Pulse Cannon EM Pulse Cannon > --- INVENTORY -------- ECM Suite [Rating: 20] Favorites ----------- Power Ion Engine Engine Ion Engine Propulsion Light Treads Treads Light Treads Leg Aluminum Leg Utility Signal Interpreter Device Structural Scanner Storage Small Battery Processor Signal Interpreter Protection Medium Armor Plating Weapon Heavy EM Pulse Gun Energy Gun Heavy EM Pulse Gun Energy Cannon EM Pulse Cannon Ballistic Gun Assault Rifle Launcher EMP Blaster Slashing Weapon Mining Claw Build | -11 -10 -9 ------- Run | Yrd Mat Mat Slots Evolved 2 | . . 2 Power . | . . . Propulsion . | . . . Utility 2 | . . 2 Weapon . | . . . Parts Attached 43 | 9 19 15 Power 4 | 2 1 1 Engine 4 | 2 1 1 Core . | . . . Reactor . | . . . Propulsion 9 | 4 1 4 Treads 4 | 2 1 1 Leg 5 | 2 . 3 Wheel . | . . . Hover . | . . . Flight . | . . . Utility 17 | 1 10 6 Device 4 | . 3 1 Storage 7 | 1 4 2 Processor 3 | . 3 . Hackware . | . . . Protection 3 | . . 3 Artifact . | . . . Weapon 13 | 2 7 4 Energy Gun 7 | . 6 1 Energy Cannon 2 | . . 2 Ballistic Gun 2 | 2 . . Ballistic Cannon . | . . . Launcher 1 | . . 1 Special Weapon . | . . . Impact Weapon . | . . . Slashing Weapon 1 | . 1 . Piercing Weapon . | . . . Special Melee Weapon . | . . . Unidentified Prototypes . | . . . Parts Lost 13 | . 2 11 Power 1 | . . 1 Propulsion 4 | . . 4 Utility 3 | . . 3 Weapon 5 | . 2 3 Highest Loss Streak 8 | . 1 8 To Critical Strikes 1 | . . 1 Average Backups 4 | 2 4 3 Power . | . . . Propulsion 1 | 1 2 1 Utility 1 | . 1 1 Weapon . | . 1 . Tool/Special . | . . . Unused Backups 1 | . 1 . Power . | . . . Propulsion . | . . . Utility . | . . . Weapon 1 | . 1 . Tool/Special . | . . . Average Slot Usage (%) 93 | . 96 76 Engine 12 | . 14 7 Treads 26 | . 27 18 Device 6 | . 7 2 Storage 9 | . 10 4 Processor 10 | . 7 22 Protection 1 | . . 6 Energy Gun 18 | . 22 3 Ballistic Gun 4 | . 5 . Slashing Weapon 1 | . . 7 Peak Build Rating 20 | 6 9 20 Average Rating 8 | 4 8 8 On Entrance 4 | . 6 7 Naked Turns . | . . . Heaviest Build 52 | 11 52 21 Greatest Support 40 | 40 40 40 Greatest Overweight (x) 5 | 2 1 5 Average Overweight (x) . | . . . Largest Inventory Capacity 20 | 5 20 5 Average Capacity 5 | 5 5 5 Most Carried 5 | 4 5 5 Average Carried 4 | 2 4 3 Final Capacity 5 | 5 5 5 Final Carried 5 | 4 5 2 Class Distribution -------------------- 100% | Mutant Dominant Class ---------------- Mutant | -10/Materials Mutant | -9/Materials Resources | -11 -10 -9 ----------- Run | Yrd Mat Mat Matter Collected 1034 | 414 497 123 Remotely . | . . . Salvage Created 1616 | 147 965 504 Parts 93 | 6 65 22 Haulers Intercepted 3 | . 2 1 Recyclers Shooed 3 | . 1 2 Parts Field Recycled . | . . . Retrieved Matter . | . . . Parts Self-Destructed . | . . . Prevented . | . . . Kills | -11 -10 -9 ------- Run | Yrd Mat Mat Combat Hostiles Destroyed 23 | . 16 7 Melee 2 | . . 2 Guns 18 | . 16 2 AOE 3 | . . 3 Classes Destroyed 10 | 3 6 1 Worker 9 | 2 7 . Tunneler 2 | 1 1 . Hauler 3 | . 2 1 Recycler 4 | 1 1 2 Mechanic 1 | . 1 . Operator 1 | . 1 . Watcher 3 | . 3 . Swarmer 8 | . 6 2 Grunt 14 | . 10 4 Brawler 1 | . . 1 Best Kill Streak 6 | 3 6 3 Combat Bots Only 6 | . 6 3 Max Kills in Single Turn 2 | 1 2 2 Gunslinging 1 | . 1 . Exploded 2 | . . 2 Melee 1 | . . 1 Uniques/NPCs Destroyed . | . . . Combat | -11 -10 -9 -------- Run | Yrd Mat Mat Hostile Shots Fired 210 | . 49 161 Missed 56 | . 9 47 Hits 154 | . 40 114 Melee 5 | . . 5 Projectile 149 | . 40 109 Critical Strikes 7 | . . 7 Damage Taken 2188 | . 658 1530 Core 578 | . 169 409 Absorbed by Shields . | . . . Regen/Repaired (Parts) 110 | . 110 . Core Remaining (%) 66 | 100 32 . Volleys Fired 86 | 11 69 6 Largest 2 | 2 2 1 Hottest 90 | 40 90 45 Shots Fired 168 | 22 140 6 Gun 166 | 22 140 4 Cannon . | . . . Launcher 2 | . . 2 Special . | . . . Kinetic 101 | 22 79 . Thermal . | . . . Explosive . | . . . Electromagnetic 67 | . 61 6 Robot Hit Streak 10 | 5 10 6 Robot Miss Streak 5 | 2 5 1 Penetration Max . | . . . Secondary Targets 3 | . 3 . Max Gunslinging Chain 1 | . 1 . Shots Hit Robots 112 | 13 79 20 Core Hits 60 | 5 41 14 Critical Kills . | . . . Critical Parts Destroyed 1 | 1 . . Critical Strikes 2 | 1 1 . Destroy 1 | 1 . . Corrupt 1 | . 1 . Melee Attacks 21 | . 1 20 Impact . | . . . Slashing 21 | . 1 20 Piercing . | . . . Sneak Attacks 4 | . 1 3 Combat Hostiles . | . . . Follow-up Attacks . | . . . Damage Inflicted 2280 | 160 1514 606 Guns 1343 | 160 1140 43 Cannons . | . . . Explosions 507 | . 326 181 Melee 429 | . 48 381 Ramming 1 | . . 1 Kinetic 764 | 160 604 . Thermal 351 | . 326 25 Explosive . | . . . Electromagnetic 735 | . 536 199 Impact . | . . . Slashing 429 | . 48 381 Piercing . | . . . Highest Corruption 4 | . 3 4 Average Corruption 3 | . 2 3 Corruption Purged . | . . . Corruption Blocked . | . . . Effects 55 | . 49 6 Message Errors 20 | . 17 3 Matter Fused 16 | . 15 1 Heat Flow Errors 4 | . 3 1 Energy Discharges 8 | . 8 . Parts Fused 1 | . 1 . Data Loss (minor) 2 | . 2 . Data Loss (major) 2 | . 1 1 Misfires 2 | . 2 . Overload Shots . | . . . Overflow Damage 40 | . 17 23 Projectiles . | . . . Explosions 22 | . 17 5 Melee 18 | . . 18 Knockbacks . | . . . Impact . | . . . Kinetic . | . . . Secondary . | . . . Self-Inflicted Damage 307 | . 227 80 Shots 9 | . 5 4 Rammed 3 | . 1 2 Targets Rammed 3 | . 1 2 Kicked . | . . . Crushed . | . . . Highest Temperature 328 | . 328 204 Average Temperature 59 | . 61 48 Received Heat Transfer 654 | . 156 498 Siege Activations . | . . . Martial Activations . | . . . Shielding Activations . | . . . Robots Disrupted . | . . . Combat Hostiles . | . . . Robots Corrupted . | . . . Combat Hostiles . | . . . Parts Fried 2 | . 1 1 Impact Corruptions . | . . . Robots Melted . | . . . Combat Hostiles . | . . . Parts Melted . | . . . Heat Transferred 350 | . 300 50 Parts Sabotaged . | . . . Parts Stolen . | . . . Parts Stripped . | . . . Power Chain Reactions 8 | . 6 2 Alert | -11 -10 -9 ------- Run | Yrd Mat Mat Maximum Alert Level . | . . . Low Security (%) 100 | 100 100 100 Level 1 . | . . . Level 2 . | . . . Level 3 . | . . . Level 4 . | . . . Level 5 . | . . . High Security . | . . . Max Security . | . . . Peak Influence 163 | 10 163 134 Initial 6 | . . 6 Average 52 | 1 57 41 Influence Increases 1001 | 20 651 330 Destroy 0b10 Robot/C 460 | . 320 140 Destroy 0b10 Robot/NC 115 | 20 80 15 Destroy Leader 102 | . 70 32 Successful Hack 23 | . 23 . Disable Machine 90 | . 75 15 Destroy Structure 61 | . 53 8 Partial Spotted 30 | . 15 15 Lose Combat Pursuer 120 | . 15 105 Influence Decreases 920 | 20 635 265 Entered New Map 10 | . . 10 Time Decay 790 | 20 615 155 Lost Part 120 | . 20 100 Squads Dispatched 6 | . 3 3 Investigation 2 | . 2 . Extermination . | . . . Reinforcement 4 | . 1 3 Assault . | . . . Garrison . | . . . Intercept . | . . . Searches Triggered . | . . . Construction Impeded . | . . . Haulers Reinforced . | . . . Active Scanning Responses . | . . . Cargo Convoy Interrupts . | . . . Stealth | -11 -10 -9 --------- Run | Yrd Mat Mat Distress Signals 2 | . 1 1 Communications Jammed . | . . . Distress Signals . | . . . Times Spotted 50 | . 32 18 Peak Tracking Total 7 | . 3 7 Tactical Retreats 7 | . 1 6 Traps | -11 -10 -9 ------- Run | Yrd Mat Mat Traps Triggered 2 | . 2 . Indirectly . | . . . Trap Hack Attempts . | . . . Triggered . | . . . Disarmed . | . . . Reprogrammed . | . . . Reused . | . . . Traps Extracted . | . . . Installed . | . . . Triggered . | . . . Machines | -11 -10 -9 ---------- Run | Yrd Mat Mat Machines Disabled 7 | . 6 1 Max in Single Turn 2 | . 2 1 Machines Repaired . | . . . Machines Dismantled . | . . . Machines Sabotaged . | . . . Overloaded Fab Kills . | . . . Hacking | -11 -10 -9 --------- Run | Yrd Mat Mat Machines Accessed 8 | . 6 2 Terminals 7 | . 5 2 Fabricators . | . . . Repair Stations 1 | . 1 . Recycling Units . | . . . Scanalyzers . | . . . Garrison Access . | . . . Total Hacks 31 | . 27 4 Successful 14 | . 14 . Failed 17 | . 13 4 Catastrophic 3 | . 2 1 Database Lockouts . | . . . Manual . | . . . Terminals 24 | . 20 4 Fabricators . | . . . Repair Stations 7 | . 7 . Recycling Units . | . . . Scanalyzers . | . . . Garrison Access . | . . . Terminal Hacks 9 | . 9 . Record 2 | . 2 . Prototype ID Bank 1 | . 1 . Emergency Access Points 2 | . 2 . Maintenance Status 2 | . 2 . Security Status 1 | . 1 . Transport Status 1 | . 1 . Fabricator Hacks . | . . . Repair Station Hacks 5 | . 5 . Scan Component 3 | . 3 . Repair 2 | . 2 . Recycling Unit Hacks . | . . . Scanalyzer . | . . . Garrison Access Hacks . | . . . Unauthorized Hacks . | . . . Terminals . | . . . Fabricators . | . . . Repair Stations . | . . . Recycling Units . | . . . Scanalyzers . | . . . Garrison Access . | . . . Data Cores Recovered . | . . . Used . | . . . Hacking Detections 7 | . 5 2 Full Trace Events 3 | . 3 . Feedback Events . | . . . Feedback Blocked . | . . . Robot Schematics Acquired . | . . . Robots Built . | . . . Authchips . | . . . Time . | . . . Total Robot Build Rating . | . . . Part Schematics Acquired . | . . . Parts Built . | . . . Authchips . | . . . Time . | . . . Total Part Build Rating . | . . . Parts Repaired 2 | . 2 . Time 52 | . 52 . Parts Recycled . | . . . Recycled Matter . | . . . Retrieved Matter . | . . . Retrieved Components . | . . . Parts Scanalyzed . | . . . Part Schematics Acquired . | . . . Parts Damaged . | . . . Bothacking | -11 -10 -9 ------------ Run | Yrd Mat Mat Used RIF Installer . | . . . Robots Hacked . | . . . Non-combat . | . . . Combat . | . . . Robot Hacks Applied . | . . . Relay Couplers Released . | . . . Fabnet Peak Effective % . | . . . Robots Rewired . | . . . Allies Hacked . | . . . Hacks Repelled . | . . . Allies | -11 -10 -9 -------- Run | Yrd Mat Mat Total Allies . | . . . Largest Group . | . . . Highest-Rated Group . | . . . Highest-Rated Ally . | . . . Total Orders . | . . . Ally Attacks . | . . . Total Damage . | . . . Kills . | . . . Allies Corrupted . | . . . Allies Melted . | . . . Intel | -11 -10 -9 ------- Run | Yrd Mat Mat Active Infowar (turns) 1526 | . 1523 3 Terrain 215 | . 215 . Structural 1291 | . 1291 . T.N.C. 17 | . 17 . ECM 3 | . . 3 Robot Analysis Total . | . . . Derelict Logs Recovered . | . . . Drone Launches . | . . . Drone Recoveries . | . . . Exploration | -11 -10 -9 ------------- Run | Yrd Mat Mat Turns Passed 3750 | 171 2923 656 Spaces Moved 2048 | 87 1568 393 Core 91 | 14 . 77 Treads 1937 | 55 1568 314 Legs 20 | 18 . 2 Wheels . | . . . Hover . | . . . Flight . | . . . Fastest Speed 50 | 50 160 50 Average Speed 155 | 138 160 140 Slowest Speed 300 | 160 240 300 Overloaded Moves . | . . . Propulsion Burnouts . | . . . Robots Hopped . | . . . Potential Cave-ins . | . . . Cave-ins Triggered . | . . . Exploration Rate (%) 43 | 5 100 24 Regions Visited 2 Branch Regions . Pre-discovered Areas . | . . . Known Exits Taken 1 | . 1 . Unknown Exits Taken 1 | 1 . . Scrap Searched . | . . . Spaces Dug . | . . . Terrain Destroyed 72 | . 64 8 Melee . | . . . Projectile . | . . . AOE 72 | . 64 8 Terrain Rammed . | . . . Walls Destroyed . | . . . Machines Disabled . | . . . Actions | -11 -10 -9 --------- Run | Yrd Mat Mat Total 2400 | 112 1844 444 Wait 153 | . 153 . Move 2046 | 86 1567 393 Hop . | . . . Pick Up 7 | 1 6 . Fast Attach 39 | 9 19 11 Attach 6 | . 1 5 Detach 12 | 3 7 2 Swap 5 | 2 1 2 Drop 22 | . 19 3 Fire 86 | 11 69 6 Melee 21 | . 1 20 Ram 2 | . . 2 Kick . | . . . Crush 1 | . 1 . Escape Stasis . | . . . Rewire . | . . . Trap . | . . . Miscellaneous . | . . . Route ------- -11/Scrapyard -10/Materials (discovered 6 exits: *Mat x3 / *Min x2 / *Sub) -9/Materials History --------- Turn | Location | Event 11 | -11/Scrapyard | Discovered new exit (range 15) 172 | -11/Scrapyard | Entered Materials 306 | -10/Materials | Build established: Mutant 321 | -10/Materials | Discovered new exit (range 14) 885 | -10/Materials | Repaired Lgt. Treads 913 | -10/Materials | Repaired Lgt. Treads 955 | -10/Materials | Discovered new exit (range 5) 1549 | -10/Materials | Discovered new exit (range 12) 1619 | -10/Materials | Discovered new exit (range 6) 1715 | -10/Materials | Identified exit to Subcaves 1738 | -10/Materials | Identified exit to Materials 1895 | -10/Materials | Discovered new exit (range 15) 1930 | -10/Materials | Identified exit to Mines 2155 | -10/Materials | Core integrity fell below 50% 2641 | -10/Materials | Discovered exit to Materials (range 8) 3095 | -10/Materials | Entered another Materials area 3095 | -9/Materials | Evolved 2 slots: Utility x2 3517 | -9/Materials | Core integrity fell below 50% 3556 | -9/Materials | Lost 8 parts (1p2n2u3w) 3670 | -9/Materials | Core integrity fell below 20% 3751 | -9/Materials | Destroyed by G-34 Mercenary with Small Laser Last Messages --------------- 03626_ K-01 Serf collects debris. 03632_ K-01 Serf cleans the Electrolysis Chamber. 03637_ K-01 Serf collects debris. 03663_ Electrolysis Chamber disabled. 03669_ Critical hit (Burn: +37). 03675_ Lgt. Treads destroyed. 03680_ K-01 Serf collects debris. 03693_ Acquired 2 matter. 03694_ XV70ULLM%KK4= KVS,=TM 03694_ Acquired 23 matter. 03696_ K-01 Serf collects debris. 03709_ O-16 Technician: "IFF HANDSHAKE FAILED. SECURING TERMINAL." 03712_ Lgt. Treads destroyed. 03715_ ALERT: Hostiles spotted, dispatching reinforcements to Terminal M006. 03723_ System corrupted: Matter fused (-8). 03727_ Acquired Insulated Plating. 03733_ Acquired EM Pulse Cannon. 03744_ Acquired Carbon-fiber Leg. 03745_ Critical hit (Burn: +37). 03747_ Acquired Carbon-fiber Leg. Map ----- +----------------------------------------------------+ | | | | | | | ??????????????????????????? | | ??????????????????????????? | | ??????????????????????????? | | ??????????????????????????? | | ??????????????????????????? | | ??????????????????????????? | | ??????????????????????????? | | ??????????????????????????? | | ??????????????????????????? | | ??????????????????????????? | | ??????????????????????????? | | ??????????????????????????? | | ?????? ??????????????????? | | ?????? ?????????????????? | | ?????? ????????????????? | | ?????? ?????????????????? | | ?????? ?????????????????? | | ?????? ??????????????????? | | ?????? ??????????????????? | | ?????# #??????????????????? | | ?????# #??????????????????? | | ?##### #??????????????????? | | ?#@ #??????????????????? | | ?#= #??????????????????? | | ?#]] #???###????????????? | | ?# #?? #####???????? | | ?#!! ## ????? | | ?# Y ????? | | ?#####g## ????? | | ?????# #?? #####???????? | | ?????# #???# ##???????????? | | ?????# #???# #????????????? | | ?????# #???# ?????????????? | | ?????# #???# ?????????????? | | ?????# #???# #????????????? | | ?????# #???# #????????????? | | ?????# #???# #????????????? | | ?#####+##### #????????????? | | ?# """ """ # #????????????? | | ?# """ """ # #######+#+### | | ?# """ """ # | | ?# + | | ?# # | | ?# # ##### ###??? | | ?# # #??????????? | | ?# # #??????????? | | ?########### #??????????? | +----------------------------------------------------+ Best States ------------- Heat Dissipation 28 Energy Generation 14 Energy Capacity 450 Matter Stores 400 Matter Capacity 450 Sight Range 16 Terrain Scan Range 14 Terrain Scan Density 10 ECM Strength 1 Armor Coverage 300 Resistance: EM 15 Evasion (%) 50 Targeting Accuracy 5 Recoil Reduction 2 Item Schematics ----------------- None Robot Schematics ------------------ None Fabricated ------------ Nothing Repaired ---------- Lgt. Treads | 72% | -10/Materials Lgt. Treads | 48% | -10/Materials Alien Tech Used ----------------- None Achievements -------------- Let's See Who's Tougher Challenges ------------ None Game ------ Seed ColdModifiedScrapsphere Manual? 0 Play Time 00:37:02 Cumulative 4.3 hours Start 2025.10.11 @ 05:55:58 End 2025.10.11 @ 06:32:30 Sessions 1 Manual Loads 0 Difficulty Rogue Special Mode None Game No. 4 Rogue 4 Adventurer 0 Explorer 0 Win Type - Total 0 Types 0/0/0/0/0/0/0/0/0/0 Lore% 1 Gallery% 5 Achievement% 7 Wizard Run 0 Options --------- Layout 1 ASCII 0 Keyboard 1 Movement Arrows Keybinds 0 Fullscreen 1 Font 32/SmallcapsGlow Map View 130x35 Zoom Use 0% Tactical HUD 1 Map Filters NONE Filters NONE Steam 1 RUN: 63d7c4ed-487c-4c1d-bf69-48ee22cb5dc9